bitfinex/quotes_SOLUSD_20241117
["timestamp","ask_amount","ask_price","bid_price","bid_amount"]
[1731870727935,4.2832,233.47,233.35,23.776884]
[1731870728251,4.2832,233.47,233.27,20.12549]
[1731870728452,0.09367462,233.46,233.32,23.776884]
[1731870728627,4.2832,233.47,233.27,20.25098]
[1731870728628,4.2832,233.47,233.34,23.776884]
[1731870729034,0.09367462,233.46,233.3,10.7157]
[1731870729354,0.19367462,233.46,233.3,10.7157]
[1731870729839,0.09367462,233.42,233.27,4.2868]
[1731870730051,0.34465462,233.42,233.27,4.2868]
[1731870730960,0.34465462,233.4,233.27,4.2868]
[1731870731941,0.34465462,233.4,233.23,4.2875]
[1731870731942,0.34465462,233.38,233.23,4.2875]
[1731870732542,0.34465462,233.38,233.23,14.87562552]
[1731870733160,0.25098,233.35,233.23,14.87562552]
[1731870733351,0.25098,233.35,233.23,25.59462552]
[1731870733554,0.12549,233.35,233.23,25.59462552]
[1731870733751,0.12549,233.36,233.25,10.58812552]
[1731870733948,0.25098,233.36,233.24,23.776884]
[1731870734946,0.12549,233.36,233.24,23.776884]
[1731870735260,0.09367462,233.36,233.24,28.064184]
[1731870735641,0.09367462,233.37,233.24,28.064184]
[1731870736150,0.25098,233.35,233.24,28.064184]
[1731870737168,0.09367462,233.34,233.21,4.2878]
[1731870737356,0.09367462,233.34,233.17,38.38701092]
[1731870737357,0.09367462,233.34,233.18,10.721]
[1731870737544,0.09367462,233.34,233.2,4.288]
[1731870738173,0.09367462,233.34,233.19,10.7208]
[1731870738466,0.25098,233.32,233.2,23.776884]
[1731870739048,0.09367462,233.31,233.19,10.7208]
[1731870739365,0.09367462,233.31,233.16,4.2889]
[1731870740358,0.25098,233.28,233.14,15.0121]
[1731870740871,0.34465462,233.29,233.14,15.0121]
[1731870741239,0.12549,233.27,233.15,23.776884]
[1731870742046,0.12549,233.27,233.15,40.72039492]
[1731870742352,4.50576462,233.28,233.16,15.0111]
[1731870742669,4.50576462,233.28,233.17,23.776884]
[1731870743244,4.50576462,233.28,233.18,4.2885]
[1731870743657,4.00576462,233.28,233.18,4.2885]
[1731870744854,20.0,233.32,233.19,23.776884]
[1731870745052,4.2861,233.31,233.19,23.776884]
[1731870745964,0.12549,233.34,233.2,4.2881]
[1731870746169,0.12549,233.34,233.18,10.7213]
[1731870746170,0.21916462,233.31,233.18,10.7213]
[1731870746668,0.09367462,233.29,233.18,10.7213]
[1731870746841,0.09367462,233.29,233.18,15.0098]
[1731870746842,0.12549,233.28,233.18,15.0098]
[1731870748160,4.2868,233.27,233.18,10.7213]
[1731870748556,4.2868,233.27,233.19,23.776884]
[1731870748979,4.41119,233.33,233.19,23.776884]
[1731870749274,4.2857,233.33,233.21,23.776884]
[1731870750373,4.2857,233.33,233.23,23.776884]
[1731870751378,4.2857,233.33,233.25,23.776884]
[1731870753361,4.2857,233.33,233.24,15.0059]
[1731870753560,4.2857,233.33,233.24,10.7185]
[1731870753767,4.2857,233.33,233.23,23.776884]
[1731870754766,0.34465462,233.35,233.23,23.776884]
[1731870754977,4.63005462,233.35,233.23,23.776884]
[1731870755156,4.63005462,233.35,233.21,38.784684]
[1731870757670,0.09367462,233.32,233.17,4.2886]
[1731870757981,0.12549,233.25,233.12,4.2895]
[1731870758397,0.09367462,233.24,233.12,4.2895]
[1731870758568,0.12549,233.23,233.12,4.2895]
[1731870758959,4.2877,233.22,233.12,4.2895]
[1731870759564,4.2877,233.22,233.13,23.776884]
[1731870759990,4.2877,233.22,233.12,23.776884]
[1731870760165,4.2877,233.22,233.04,18.2540865]
[1731870760166,0.34465462,233.21,233.08,10.59105618]
[1731870760365,0.34465462,233.21,233.07,10.726]
[1731870760575,4.2877,233.22,233.1,10.59105618]
[1731870760874,4.2877,233.22,233.08,10.59105618]
[1731870761562,4.2877,233.22,233.1,10.59105618]
[1731870762079,20.0,233.25,233.13,23.776884]
[1731870762080,4.53838,233.24,233.13,23.776884]
[1731870763288,4.53838,233.24,233.14,4.2892]
[1731870763465,0.5681,233.28,233.15,23.776884]
[1731870763670,4.2868,233.28,233.17,23.776884]
[1731870764369,0.5681,233.34,233.2,10.59105618]
[1731870764570,4.8538,233.34,233.21,23.776884]
[1731870765568,24.8538,233.34,233.23,23.776884]
[1731870765792,0.09367462,233.33,233.22,10.7194]
[1731870765991,20.34465462,233.33,233.22,10.7194]
[1731870766887,0.34465462,233.31,233.22,10.7194]
[1731870768001,4.2863,233.3,233.22,10.7194]
[1731870768592,0.34465462,233.29,233.17,10.7214]
[1731870769808,0.09367462,233.27,233.17,10.7214]
[1731870770014,0.34465462,233.27,233.17,10.7214]
[1731870770902,4.287,233.26,233.17,10.7214]
[1731870771105,4.287,233.26,233.15,23.776884]
[1731870771508,26.22288671,233.36,233.19,23.776884]
[1731870772106,0.09367462,233.33,233.21,10.59105618]
[1731870772407,10.7126,233.37,233.21,10.59105618]
[1731870772408,10.7126,233.37,233.22,23.776884]
[1731870772618,162.4,233.41,233.27,10.59105618]
[1731870772619,4.2853,233.36,233.27,10.59105618]
[1731870773125,4.2853,233.36,233.23,15.0066]
[1731870773290,0.09367462,233.33,233.17,10.7214]
[1731870773489,0.09367462,233.28,233.14,15.0123]
[1731870774308,0.25098,233.29,233.17,10.59105618]
[1731870774607,4.2866,233.28,233.18,15.0098]
[1731870774819,0.09367462,233.21,233.12,21.2991]
[1731870775122,0.1,233.27,232.97,6.23042728]
[1731870775123,0.25098,233.14,232.97,6.23042728]
[1731870775417,1.0494,233.24,233.08,10.59105618]
[1731870775589,0.25098,233.23,233.08,10.59105618]
[1731870775792,0.12549,233.21,233.06,25.67905618]
[1731870776000,1.0494,233.24,233.1,10.59105618]
[1731870776196,0.25098,233.23,233.09,16.96024897]
[1731870776606,24.53858,233.23,233.1,4.29]
[1731870777318,24.53858,233.23,233.09,27.68564897]
[1731870777319,0.09367462,233.22,233.09,27.68564897]
[1731870777519,0.09367462,233.22,233.09,10.7254]
[1731870778327,0.09367462,233.22,233.09,31.97574897]
[1731870778506,0.12549,233.23,233.14,4.2892]
[1731870778814,0.25098,233.23,233.14,4.2892]
[1731870779033,1.0494,233.24,233.14,4.2892]
[1731870779931,1.0494,233.24,233.15,16.96024897]
[1731870780095,0.25098,233.23,233.15,16.96024897]
[1731870780711,0.12549,233.23,233.15,16.96024897]
[1731870781034,4.8546,233.29,233.19,16.96024897]
[1731870781206,0.4813,233.3,233.21,16.96024897]
[1731870781401,10.58950115,233.35,233.23,16.96024897]
[1731870781402,4.2858,233.33,233.23,16.96024897]
[1731870782104,10.58950115,233.35,233.27,16.96024897]
[1731870782105,10.02140115,233.35,233.27,16.96024897]
[1731870783136,4.2847,233.39,233.29,16.96024897]
[1731870783613,0.5681,233.41,233.31,16.96024897]
[1731870784119,4.2844,233.41,233.32,4.2859]
[1731870784300,4.2844,233.41,233.33,16.96024897]
[1731870785527,0.09367462,233.43,233.31,16.96024897]
[1731870785739,0.09367462,233.41,233.27,16.96024897]
[1731870786104,0.09367462,233.38,233.24,15.0055]
[1731870786304,0.09367462,233.36,233.24,15.0055]
[1731870786712,0.21916462,233.36,233.24,15.0055]
[1731870787002,0.25098,233.35,233.24,15.0055]
[1731870787224,4.2855,233.34,233.25,16.96024897]
[1731870790116,4.50506462,233.33,233.23,16.96024897]
[1731870790331,4.50506462,233.33,233.22,10.719]
[1731870790332,0.21916462,233.31,233.22,10.719]
[1731870790532,0.25098,233.3,233.19,21.24834897]
[1731870791628,24.2855,233.34,233.21,16.96024897]
[1731870791815,0.25098,233.33,233.23,16.96024897]
[1731870792328,0.09367462,233.32,233.19,31.96914897]
[1731870792717,0.34465462,233.3,233.19,27.68104897]
[1731870792923,0.34465462,233.3,233.17,16.96024897]
[1731870793107,24.22153862,233.3,233.17,16.96024897]
[1731870793305,0.34465462,233.28,233.15,16.96024897]
[1731870794529,0.34465462,233.28,233.19,16.96024897]
[1731870794739,4.2868,233.27,233.19,16.96024897]
[1731870797229,4.2868,233.27,233.17,21.24884897]
[1731870797626,0.09367462,233.25,233.17,16.96024897]
[1731870797818,0.21916462,233.23,233.15,16.96024897]
[1731870798017,0.09367462,233.23,233.13,16.96024897]
[1731870798217,0.09367462,233.23,233.15,16.96024897]
[1731870799209,4.2877,233.22,233.15,16.96024897]
[1731870800412,0.09367462,233.21,233.13,16.96024897]
[1731870800729,0.34465462,233.21,233.11,10.7245]
[1731870801279,0.34465462,233.21,233.09,16.96024897]
[1731870801406,0.34465462,233.19,233.07,16.96024897]
[1731870802412,24.22153862,233.19,233.05,16.96024897]
[1731870802716,0.34465462,233.17,233.03,16.96024897]
[1731870802915,0.34465462,233.17,233.07,16.96024897]
[1731870803522,0.09367462,233.15,233.05,16.96024897]
[1731870803723,0.34465462,233.15,233.05,16.96024897]
[1731870805233,0.21916462,233.13,233.03,16.96024897]
[1731870805440,0.12549,233.1,233.01,16.96024897]
[1731870805658,0.12549,233.1,232.96,21.4624]
[1731870805659,0.21916462,233.05,232.96,10.7311]
[1731870805947,1.1494,233.11,232.93,17.06024897]
[1731870805948,24.002374,233.08,232.93,17.06024897]
[1731870806145,20.0,233.07,232.96,0.1]
[1731870806725,20.0,233.07,232.94,0.1]
[1731870807157,4.2907,233.06,232.94,0.1]
[1731870807447,20.0,233.04,232.92,0.1]
[1731870807623,20.0,233.02,232.88,0.1]
[1731870807826,0.12549,233.01,232.88,0.1]
[1731870808037,0.09367462,233.0,232.9,0.1]
[1731870808232,0.09367462,233.0,232.88,0.1]
[1731870808954,20.0,233.02,232.88,0.1]
[1731870808955,20.0,233.02,232.91,16.96024897]
[1731870809130,0.12549,233.07,232.97,16.96024897]
[1731870809658,0.09367462,233.06,232.96,0.1]
[1731870810725,0.34465462,233.04,232.96,0.1]
[1731870811630,0.34465462,233.04,232.98,0.1]
[1731870812831,4.2912,233.03,232.98,0.1]
[1731870813056,20.99405462,233.11,232.98,0.1]
[1731870813230,0.09367462,233.07,232.98,0.1]
[1731870813427,0.12549,233.06,232.98,0.1]
[1731870813749,0.21916462,233.05,232.98,0.1]
[1731870814257,20.99405462,233.11,232.99,16.96024897]
[1731870814430,4.289,233.15,233.05,0.1]
[1731870814740,15.1117,233.15,232.99,16.96024897]
[1731870814940,0.09367462,233.11,232.98,0.1]
[1731870815139,0.09367462,233.11,233.01,0.1]
[1731870815338,15.0117,233.15,233.02,0.1]
[1731870815541,0.1,233.14,232.99,23.20484897]
[1731870815846,0.1,233.11,232.99,0.1]
[1731870816551,23.87055862,233.09,232.97,0.1]
[1731870816752,0.09367462,233.07,232.97,0.1]
[1731870817137,0.09367462,233.05,232.95,0.1]
[1731870817352,0.09367462,233.05,232.99,0.1]
[1731870817658,0.09367462,233.05,232.96,0.1]
[1731870817969,0.09367462,233.05,232.93,27.79284897]
[1731870818257,0.09367462,233.03,232.93,0.1]
[1731870818439,0.09367462,233.03,232.91,17.06024897]
[1731870818635,0.34465462,233.01,232.91,17.06024897]
[1731870819035,20.34465462,233.01,232.89,17.06024897]
[1731870819259,20.34465462,233.01,232.91,0.1]
[1731870819434,20.34465462,233.01,232.89,0.1]
[1731870820241,0.34465462,233.01,232.89,0.1]
[1731870820443,0.34465462,232.99,232.89,0.1]
[1731870820658,0.34465462,232.99,232.88,10.7351]
[1731870821155,0.34465462,232.99,232.83,22.8034846]
[1731870821156,0.09367462,232.93,232.83,7.2022846]
[1731870821344,0.21916462,232.91,232.83,7.2022846]
[1731870822262,0.21916462,232.89,232.83,7.2022846]
[1731870822449,4.294,232.88,232.83,7.2022846]
[1731870822755,0.34465462,232.87,232.83,7.2022846]
[1731870823820,4.2944,232.86,232.83,7.2022846]
[1731870824545,4.2944,232.86,232.78,10.7395]
[1731870825664,4.2944,232.86,232.78,10.8395]
[1731870825956,4.2944,232.86,232.78,15.0354]
[1731870826160,4.2944,232.86,232.8,0.1]
[1731870826860,0.09367462,232.87,232.8,0.1]
[1731870827045,0.09367462,232.9,232.8,0.1]
[1731870827248,0.09367462,232.88,232.78,0.1]
[1731870827570,0.09367462,232.88,232.75,17.06024897]
[1731870827744,0.09367462,232.88,232.77,0.1]
[1731870828464,0.21916462,232.86,232.77,0.1]
[1731870828666,0.21916462,232.86,232.75,21.35654897]
[1731870829235,0.09367462,232.86,232.75,21.35654897]
[1731870829655,0.25098,232.87,232.75,21.35654897]
[1731870829854,0.25098,232.87,232.77,0.1]
[1731870830437,0.09367462,232.86,232.75,21.35654897]
[1731870830658,4.2946,232.85,232.78,0.1]
[1731870830871,0.09367462,232.84,232.78,0.1]
[1731870831377,0.09367462,232.84,232.76,0.1]
[1731870831872,4.38807462,232.86,232.77,16.96024897]
[1731870832040,4.38807462,232.86,232.78,0.1]
[1731870832456,4.38807462,232.86,232.79,17.06024897]
[1731870833668,4.38807462,232.86,232.79,16.96024897]
[1731870833871,4.38807462,232.86,232.79,17.06024897]
[1731870834246,4.38807462,232.86,232.79,0.1]
[1731870835543,4.2936,232.9,232.84,0.1]
[1731870835746,4.2936,232.9,232.82,10.63009972]
[1731870836055,4.2936,232.9,232.81,0.1]
[1731870836363,0.09367462,232.89,232.83,0.1]
[1731870836661,4.2931,232.93,232.86,0.1]
[1731870836867,4.2931,232.93,232.86,10.73009972]
[1731870837063,4.292,232.99,232.91,0.1]
[1731870837374,0.09367462,232.98,232.91,0.1]
[1731870837664,4.292,232.99,232.91,0.1]
[1731870837841,4.292,232.99,232.93,0.1]
[1731870838653,0.09367462,232.98,232.91,0.1]
[1731870839451,0.09367462,232.98,232.93,0.1]
[1731870839963,0.09367462,232.98,232.91,0.1]
[1731870841569,4.2918,233.0,232.95,0.1]
[1731870841777,4.41659,233.04,232.95,0.1]
[1731870841950,0.09367462,233.02,232.95,0.1]
[1731870842155,0.21916462,233.02,232.92,0.1]
[1731870843151,0.12549,233.03,232.91,27.7252738]
[1731870843152,0.21916462,233.0,232.91,27.7252738]
[1731870844156,0.21916462,233.0,232.92,0.1]
[1731870844357,0.09367462,233.0,232.94,0.1]
[1731870844555,0.5681,233.05,232.95,16.9915738]
[1731870844753,4.2906,233.07,232.99,17.0915738]
[1731870844962,4.2906,233.07,233.02,0.1]
[1731870845171,0.5681,233.11,233.02,0.1]
[1731870845172,0.09367462,233.09,233.02,0.1]
[1731870845379,4.29,233.1,233.03,16.9915738]
[1731870845687,4.29,233.1,233.06,0.1]
[1731870847374,4.29,233.1,233.04,0.1]
[1731870848264,4.63365462,233.15,233.06,0.1]
[1731870848465,10.63319619,233.17,233.12,0.1]
[1731870848797,4.2888,233.17,233.12,0.1]
[1731870849081,0.09367462,233.16,233.12,0.1]
[1731870849284,4.2876,233.23,233.12,0.1]
[1731870849584,0.09367462,233.22,233.12,0.1]
[1731870849889,0.09367462,233.22,233.14,0.1]
[1731870850067,0.34465462,233.22,233.14,0.1]
[1731870850262,4.2879,233.21,233.12,0.1]
[1731870850465,4.2879,233.21,233.14,17.0915738]
[1731870850680,0.09367462,233.2,233.16,0.1]
[1731870850861,4.2879,233.21,233.16,0.1]
[1731870851254,6.75971054,233.3,233.2,0.1]
[1731870851255,4.287,233.26,233.2,0.1]
[1731870851456,4.2867,233.28,233.21,0.1]
[1731870851676,0.09367462,233.27,233.21,0.1]
[1731870852085,0.09367462,233.27,233.23,0.1]
[1731870852260,4.2855,233.34,233.23,0.1]
[1731870852467,4.2855,233.34,233.26,0.1]
[1731870852661,0.19367462,233.33,233.2,0.1]
[1731870852861,0.09367462,233.3,233.18,0.1]
[1731870853392,0.09367462,233.3,233.12,10.8236]
[1731870853393,0.09367462,233.27,233.12,10.8236]
[1731870853560,24.12153862,233.24,233.09,16.6444]
[1731870853761,0.34465462,233.22,233.08,6.2939]
[1731870853970,0.09367462,233.2,233.08,6.2939]
[1731870854181,0.34465462,233.2,233.08,6.2939]
[1731870854385,0.34465462,233.2,233.09,0.1]
[1731870854557,20.0,233.22,233.09,17.0915738]
[1731870854758,4.2868,233.27,233.17,0.1]
[1731870855080,17.091574,233.26,233.2,0.1]
[1731870855289,17.091574,233.26,233.17,0.1]
[1731870855478,0.09367462,233.26,233.15,16.7444]
[1731870856189,0.09367462,233.24,233.15,16.7444]
[1731870856784,0.09367462,233.24,233.15,33.7359738]
[1731870856957,0.09367462,233.24,233.18,0.1]
[1731870857369,4.2872,233.25,233.22,0.1]
[1731870857563,16.991573,233.27,233.2,0.1]
[1731870857564,4.2869,233.27,233.2,0.1]
[1731870857791,4.2869,233.27,233.22,0.1]
[1731870857989,4.2869,233.27,233.2,0.1]
[1731870858163,0.09367462,233.26,233.2,0.1]
[1731870858665,16.991573,233.29,233.19,0.1]
[1731870858989,4.2865,233.29,233.23,0.1]
[1731870859169,21.277273,233.33,233.25,0.1]
[1731870859375,0.09367462,233.32,233.25,17.0915738]
[1731870860369,24.63015462,233.34,233.25,17.0915738]
[1731870860663,4.2855,233.34,233.29,0.1]
[1731870861182,0.5681,233.43,233.29,0.1]
[1731870861183,4.2852,233.37,233.29,0.1]
[1731870861384,0.09367462,233.36,233.29,0.1]
[1731870861562,0.09367462,233.36,233.33,0.1]
[1731870861759,0.09367462,233.36,233.31,0.1]
[1731870861972,0.09367462,233.36,233.33,0.1]
[1731870862574,4.2847,233.39,233.33,0.1]
[1731870862780,4.2847,233.39,233.36,0.1]
[1731870862992,0.09367462,233.38,233.34,0.1]
[1731870863293,10.584235,233.42,233.35,0.1]
[1731870863585,4.2839,233.44,233.39,0.1]
[1731870864688,0.09367462,233.43,233.39,0.1]
[1731870864893,4.2839,233.44,233.39,0.1]
[1731870865401,0.09367462,233.43,233.37,0.1]
[1731870865582,0.09367462,233.43,233.39,0.1]
[1731870865781,0.09367462,233.43,233.35,0.1]
[1731870865782,0.21916462,233.41,233.35,0.1]
[1731870866472,0.09367462,233.44,233.35,0.1]
[1731870866672,10.15648198,233.46,233.4,0.1]
[1731870867089,0.09367462,233.45,233.4,0.1]
[1731870867476,0.09367462,233.45,233.34,10.8139]
[1731870867682,0.09367462,233.45,233.33,6.3728]
[1731870867879,0.34465462,233.43,233.33,6.2728]
[1731870868395,0.34465462,233.41,233.33,6.2728]
[1731870868583,0.34465462,233.41,233.33,6.3728]
[1731870869096,0.34465462,233.41,233.33,6.2728]
[1731870869999,0.34465462,233.39,233.33,6.2728]
[1731870870685,20.34465462,233.39,233.28,0.1]
[1731870871177,20.34465462,233.39,233.27,21.4674]
[1731870871500,20.34465462,233.39,233.28,0.1]
[1731870872080,0.09367462,233.37,233.27,21.4674]
[1731870872278,0.09367462,233.37,233.27,15.1946]
[1731870872279,0.21916462,233.35,233.27,15.1946]
[1731870872604,0.21916462,233.35,233.22,6.2728]
[1731870872605,0.34465462,233.35,233.26,0.1]
[1731870872985,0.34465462,233.35,233.24,0.1]
[1731870873508,0.34465462,233.35,233.26,0.1]
[1731870874186,0.34465462,233.33,233.24,0.1]
[1731870874384,0.21916462,233.33,233.26,0.1]
[1731870874604,0.21916462,233.33,233.27,0.1]
[1731870874605,0.09367462,233.33,233.27,0.1]
[1731870874900,0.09367462,233.31,233.22,6.3728]
[1731870875204,0.21916462,233.29,233.22,6.2728]
[1731870875380,0.21916462,233.27,233.22,6.2728]
[1731870876104,0.12549,233.26,233.22,6.2728]
[1731870876285,0.12549,233.26,233.21,15.1946]
[1731870876286,0.21916462,233.25,233.21,15.1946]
[1731870877580,20.0,233.31,233.23,0.1]
[1731870877780,4.2866,233.29,233.23,0.1]
[1731870878177,20.0,233.32,233.24,0.1]
[1731870878399,4.2857,233.33,233.25,0.1]
[1731870878901,0.09367462,233.32,233.25,0.1]
[1731870879700,4.2852,233.36,233.27,0.1]
[1731870879889,4.2852,233.36,233.29,0.1]
[1731870880302,4.2852,233.36,233.27,0.1]
[1731870880805,0.09367462,233.35,233.27,0.1]
[1731870881412,4.2852,233.36,233.3,0.1]
[1731870881597,4.2852,233.36,233.32,0.1]
[1731870881785,6.69649753,233.41,233.32,0.1]
[1731870881987,0.09367462,233.35,233.32,0.1]
[1731870882607,0.09367462,233.39,233.32,0.1]
[1731870882805,0.09367462,233.37,233.32,0.1]
[1731870883008,0.09367462,233.35,233.32,0.1]
[1731870884987,4.2832,233.47,233.37,0.1]
[1731870885400,0.09367462,233.46,233.37,0.1]
[1731870885595,0.09367462,233.46,233.33,15.8665]
[1731870885794,0.09367462,233.46,233.34,0.1]
[1731870885994,0.19367462,233.46,233.33,15.8665]
[1731870886314,0.09367462,233.44,233.33,15.8665]
[1731870886997,20.34465462,233.42,233.33,15.8665]
[1731870887196,20.34465462,233.42,233.35,0.1]
[1731870887710,0.21916462,233.42,233.38,0.1]
[1731870888011,4.2839,233.43,233.38,0.1]
[1731870888511,0.09367462,233.42,233.38,0.1]
[1731870889098,4.37717462,233.45,233.38,0.1]
[1731870889299,0.21916462,233.43,233.38,0.1]
[1731870891004,0.21916462,233.41,233.38,0.1]
[1731870891715,0.21916462,233.41,233.33,30.336435]
[1731870892106,0.09367462,233.39,233.33,30.336435]
[1731870892707,4.2841,233.42,233.35,10.584235]
[1731870893222,0.09367462,233.41,233.35,10.584235]
[1731870899209,0.09367462,233.4,233.35,10.584235]
[1731870899602,0.09367462,233.4,233.34,23.776884]
[1731870899802,0.21916462,233.4,233.33,15.4665]
[1731870900106,0.21916462,233.38,233.33,15.4665]
[1731870900713,0.21916462,233.36,233.28,6.1311]
[1731870901206,4.37887462,233.36,233.29,14.870635]
[1731870901406,4.37887462,233.36,233.31,10.584235]
[1731870901926,4.53448,233.45,233.33,10.584235]
[1731870902103,0.09367462,233.44,233.33,10.584235]
[1731870902436,0.09367462,233.44,233.31,10.584235]
[1731870902626,0.09367462,233.44,233.32,23.776884]
[1731870903303,0.21916462,233.42,233.32,23.776884]
[1731870903507,20.21916462,233.42,233.31,10.584235]
[1731870904236,0.09367462,233.38,233.29,21.300435]
[1731870904421,0.21916462,233.38,233.29,21.300435]
[1731870904614,0.21916462,233.38,233.29,10.584235]
[1731870904809,0.21916462,233.36,233.28,6.1311]
[1731870905416,0.09367462,233.34,233.28,6.1311]
[1731870907039,20.0,233.39,233.29,10.584235]
[1731870907238,4.2846,233.39,233.33,10.584235]
[1731870907410,0.09367462,233.38,233.33,10.584235]
[1731870908109,0.09367462,233.42,233.33,10.584235]
[1731870908310,4.37777462,233.42,233.33,10.584235]
[1731870908613,0.09367462,233.4,233.33,10.584235]
[1731870910105,0.09367462,233.38,233.33,10.584235]
[1731870910739,4.2835,233.45,233.37,10.584235]
[1731870910946,4.2835,233.45,233.39,10.584235]
[1731870911318,0.09367462,233.44,233.39,10.584235]
[1731870912131,4.2832,233.47,233.39,10.584235]
[1731870912313,0.4814723,233.48,233.46,10.584235]
[1731870912519,0.4814723,233.48,233.47,23.776884]
[1731870912915,0.4814723,233.48,233.47,45.673384]
[1731870913337,4.2808,233.6,233.47,65.673384]
[1731870913511,4.2808,233.6,233.49,10.584235]
[1731870913709,4.2808,233.6,233.51,10.584235]
[1731870914520,0.09367462,233.59,233.51,10.584235]
[1731870914725,4.2808,233.6,233.52,23.776884]
[1731870915110,0.09367462,233.59,233.52,23.776884]
[1731870915539,4.2808,233.6,233.52,23.776884]
[1731870915742,0.09367462,233.59,233.52,23.776884]
[1731870915911,0.09367462,233.59,233.49,23.776884]
[1731870916111,0.09367462,233.59,233.42,21.9965]
[1731870916112,0.09367462,233.59,233.45,10.584235]
[1731870916420,0.09367462,233.57,233.43,10.584235]
[1731870916622,0.25098,233.56,233.42,21.8965]
[1731870916821,0.09367462,233.55,233.42,21.8965]
[1731870917540,0.09367462,233.55,233.42,32.480735]
[1731870917931,0.34465462,233.53,233.42,32.480735]
[1731870918330,20.34465462,233.53,233.42,21.8965]
[1731870919234,0.25098,233.51,233.42,21.8965]
[1731870919538,0.21916462,233.5,233.42,21.8965]
[1731870920049,4.2822,233.52,233.44,10.584235]
[1731870920748,0.09367462,233.51,233.44,10.584235]
[1731870921117,4.37627462,233.51,233.44,10.584235]
[1731870921718,4.37627462,233.51,233.43,23.776884]
[1731870923148,4.37627462,233.51,233.44,10.584235]
[1731870924658,4.2821,233.53,233.45,23.776884]
[1731870924834,0.09367462,233.51,233.42,32.480735]
[1731870925955,0.21916462,233.51,233.42,32.480735]
[1731870926132,0.12549,233.49,233.42,21.8965]
[1731870926334,0.12549,233.49,233.36,32.120135]
[1731870926750,0.09367462,233.49,233.36,32.120135]
[1731870926949,0.21916462,233.47,233.36,36.405235]
[1731870928024,0.21916462,233.47,233.37,23.776884]
[1731870928230,0.09367462,233.45,233.37,23.776884]
[1731870928451,0.09367462,233.45,233.38,10.584235]
[1731870928652,0.09367462,233.45,233.39,23.776884]
[1731870928884,4.2813,233.57,233.44,10.584235]
[1731870929235,0.09367462,233.56,233.44,10.584235]
[1731870929837,4.37497462,233.57,233.44,10.584235]
[1731870930041,0.12549,233.56,233.44,10.584235]
[1731870930362,0.21916462,233.55,233.44,10.584235]
[1731870930525,0.09367462,233.53,233.44,10.584235]
[1731870930727,0.09367462,233.53,233.45,23.776884]
[1731870931255,0.12549,233.52,233.42,10.584235]
[1731870931458,34.9847,233.57,233.39,23.776884]
[1731870931459,0.09367462,233.49,233.39,23.776884]
[1731870931953,0.21916462,233.47,233.37,10.7126]
[1731870932324,0.21916462,233.47,233.37,14.9976]
[1731870932634,0.21916462,233.47,233.37,25.581835]
[1731870933433,0.09367462,233.45,233.37,25.581835]
[1731870934065,0.09367462,233.45,233.37,14.9976]
[1731870934431,4.37737462,233.45,233.37,14.9976]
[1731870936152,3.87737462,233.45,233.37,14.9976]
[1731870936656,3.87737462,233.45,233.37,25.581835]
[1731870937550,0.12549,233.44,233.36,21.5359]
[1731870938130,0.12549,233.44,233.3,21.6806]
[1731870938131,0.09367462,233.41,233.3,21.6806]
[1731870938330,0.09367462,233.35,233.25,14.871335]
[1731870938527,0.09367462,233.33,233.24,21.6806]
[1731870938748,0.12549,233.32,233.21,10.584235]
[1731870938946,0.25098,233.32,233.21,10.584235]
[1731870939270,0.09367462,233.29,233.21,10.584235]
[1731870939735,0.09367462,233.27,233.21,10.584235]
[1731870940331,0.5681,233.38,233.19,15.1091]
[1731870940332,0.25098,233.36,233.19,15.1091]
[1731870940555,1.3073,233.41,233.3,16.94414559]
[1731870940761,4.2828,233.49,233.34,16.94414559]
[1731870940935,0.09367462,233.48,233.34,16.94414559]
[1731870941133,4.2828,233.49,233.34,16.94414559]